[Event "NK ABC Kwalificatie 2"]
[Site "Zoetermeer, Netherlands"]
[Date "2025.01.05"]
[Round "5.1"]
[White "Snijders, Take"]
[Black "Kleibeuker, Mika"]
[Result "1-0"]
[TimeControl "55+10"]
[WhiteFideId "8935927"]
[BlackFideId "8577228"]
[WhiteElo "2119"]
[BlackElo "1980"]

1. e4 {[%clk 00:55:17]} {[%emt 00:00:02]} c6 {[%clk 00:55:17]} {[%emt
00:00:04]} 2. d4 {[%clk 00:55:22]} {[%emt 00:00:04]} d5 {[%clk 00:55:25]}
{[%emt 00:00:03]} 3. e5 {[%clk 00:55:28]} {[%emt 00:00:04]} Bf5 {[%clk
00:55:32]} {[%emt 00:00:03]} 4. h4 {[%clk 00:55:26]} {[%emt 00:00:11]} h5
{[%clk 00:55:36]} {[%emt 00:00:07]} 5. Bd3 {[%clk 00:55:19]} {[%emt 00:00:17]}
Bxd3 {[%clk 00:55:42]} {[%emt 00:00:05]} 6. Qxd3 {[%clk 00:55:24]} {[%emt
00:00:03]} e6 {[%clk 00:55:49]} {[%emt 00:00:03]} 7. Nf3 {[%clk 00:55:13]}
{[%emt 00:00:22]} Qa5+ {[%clk 00:55:55]} {[%emt 00:00:04]} 8. Nbd2 {[%clk
00:55:03]} {[%emt 00:00:20]} Qa6 {[%clk 00:56:00]} {[%emt 00:00:05]} 9. c4
{[%clk 00:54:49]} {[%emt 00:00:24]} Nh6 {[%clk 00:52:37]} {[%emt 00:03:33]} 10.
O-O {[%clk 00:54:39]} {[%emt 00:00:20]} Be7 {[%clk 00:52:30]} {[%emt 00:00:17]}
11. b3 {[%clk 00:54:13]} {[%emt 00:00:36]} Nf5 {[%clk 00:50:58]} {[%emt
00:01:43]} 12. a4 {[%clk 00:54:05]} {[%emt 00:00:17]} Nxh4 {[%clk 00:45:03]}
{[%emt 00:06:05]} 13. Nxh4 {[%clk 00:52:55]} {[%emt 00:01:21]} Bxh4 {[%clk
00:45:02]} {[%emt 00:00:11]} 14. Ba3 {[%clk 00:45:44]} {[%emt 00:07:20]} Qb6
{[%clk 00:42:06]} {[%emt 00:03:06]} 15. Rfc1 {[%clk 00:36:14]} {[%emt
00:09:41]} Na6 {[%clk 00:33:04]} {[%emt 00:09:12]} 16. a5 {[%clk 00:30:22]}
{[%emt 00:06:02]} Qd8 {[%clk 00:32:25]} {[%emt 00:00:48]} 17. b4 {[%clk
00:29:37]} {[%emt 00:00:55]} Be7 {[%clk 00:29:47]} {[%emt 00:02:48]} 18. b5
{[%clk 00:27:48]} {[%emt 00:01:59]} cxb5 {[%clk 00:23:02]} {[%emt 00:06:56]} 19.
cxd5 {[%clk 00:21:14]} {[%emt 00:06:44]} exd5 {[%clk 00:18:12]} {[%emt
00:05:00]} 20. Qxb5+ {[%clk 00:17:01]} {[%emt 00:04:23]} Qd7 {[%clk 00:18:17]}
{[%emt 00:00:04]} 21. Qb3 {[%clk 00:16:19]} {[%emt 00:00:52]} Bxa3 {[%clk
00:14:09]} {[%emt 00:04:19]} 22. Qxa3 {[%clk 00:16:21]} {[%emt 00:00:08]} Qe7
{[%clk 00:14:12]} {[%emt 00:00:07]} 23. Qb3 {[%clk 00:12:24]} {[%emt 00:04:07]}
Qd7 {[%clk 00:12:34]} {[%emt 00:01:47]} 24. Rab1 {[%clk 00:11:47]} {[%emt
00:00:48]} Rb8 {[%clk 00:11:58]} {[%emt 00:00:46]} 25. Qb5 {[%clk 00:11:16]}
{[%emt 00:00:41]} Ke7 {[%clk 00:10:46]} {[%emt 00:01:22]} 26. Nf1 {[%clk
00:10:22]} {[%emt 00:01:04]} Qxb5 {[%clk 00:09:52]} {[%emt 00:01:04]} 27. Rxb5
{[%clk 00:10:27]} {[%emt 00:00:05]} Rhd8 {[%clk 00:09:59]} {[%emt 00:00:02]} 28.
Ne3 {[%clk 00:10:01]} {[%emt 00:00:37]} Ke6 {[%clk 00:09:52]} {[%emt 00:00:17]}
29. f4 {[%clk 00:09:10]} {[%emt 00:01:00]} g6 {[%clk 00:09:57]} {[%emt
00:00:05]} 30. Kf2 {[%clk 00:08:08]} {[%emt 00:01:13]} Rd7 {[%clk 00:09:02]}
{[%emt 00:01:05]} 31. Rcb1 {[%clk 00:08:16]} {[%emt 00:00:01]} f6 {[%clk
00:03:58]} {[%emt 00:05:15]} 32. exf6 {[%clk 00:06:24]} {[%emt 00:02:03]} Kxf6
{[%clk 00:04:06]} 33. Rxd5 {[%clk 00:05:05]} {[%emt 00:01:29]} Rxd5 {[%clk
00:04:02]} {[%emt 00:00:15]} 34. Nxd5+ {[%clk 00:05:10]} {[%emt 00:00:04]} Ke6
{[%clk 00:04:09]} {[%emt 00:00:03]} 35. Ne3 {[%clk 00:05:06]} {[%emt 00:00:14]}
b5 {[%clk 00:04:04]} {[%emt 00:00:14]} 36. Rc1 {[%clk 00:03:56]} {[%emt
00:01:20]} Kd6 {[%clk 00:03:31]} {[%emt 00:00:43]} 37. d5 {[%clk 00:03:38]}
{[%emt 00:00:29]} Nc5 {[%clk 00:03:24]} {[%emt 00:00:16]} 38. Ke2 {[%clk
00:03:27]} {[%emt 00:00:21]} b4 {[%clk 00:03:25]} {[%emt 00:00:10]} 39. Rb1
{[%clk 00:03:18]} {[%emt 00:00:19]} Ne4 {[%clk 00:03:15]} {[%emt 00:00:19]} 40.
Rb3 {[%clk 00:02:13]} {[%emt 00:01:16]} Rb5 {[%clk 00:02:38]} {[%emt 00:00:47]}
41. Kd3 {[%clk 00:02:08]} {[%emt 00:00:15]} Nf6 {[%clk 00:01:52]} {[%emt
00:00:56]} 42. Kc4 {[%clk 00:01:54]} {[%emt 00:00:23]} Rxa5 {[%clk 00:01:24]}
{[%emt 00:00:39]} 43. Kxb4 {[%clk 00:01:50]} {[%emt 00:00:14]} Ra2 {[%clk
00:01:19]} {[%emt 00:00:15]} 44. Kc4 {[%clk 00:01:42]} {[%emt 00:00:18]} Rf2
{[%clk 00:00:54]} {[%emt 00:00:34]} 45. g3 {[%clk 00:01:31]} {[%emt 00:00:21]}
Re2 {[%clk 00:00:36]} {[%emt 00:00:28]} 46. Kd3 {[%clk 00:01:19]} {[%emt
00:00:23]} Ra2 {[%clk 00:00:45]} 47. Rb8 {[%clk 00:01:16]} {[%emt 00:00:13]}
Ra3+ {[%clk 00:00:43]} {[%emt 00:00:12]} 48. Kd4 {[%clk 00:01:20]} {[%emt
00:00:06]} Ra4+ {[%clk 00:00:13]} {[%emt 00:00:40]} 49. Nc4+ {[%clk 00:01:27]}
{[%emt 00:00:02]} Kc7 {[%clk 00:00:23]} 50. Rf8 {[%clk 00:01:26]} {[%emt
00:00:10]} Ng4 {[%clk 00:00:18]} {[%emt 00:00:16]} 51. Rf7+ {[%clk 00:01:25]}
{[%emt 00:00:10]} Kd8 {[%emt 00:00:14]} 52. Rg7 {[%clk 00:01:27]} {[%emt
00:00:07]} Ne3 {[%clk 00:00:13]} {[%emt 00:00:13]} 53. Kxe3 {[%clk 00:01:30]}
{[%emt 00:00:07]} Rxc4 {[%clk 00:00:22]} 54. Rxa7 {[%clk 00:01:07]} {[%emt
00:00:33]} Rc3+ {[%clk 00:00:25]} {[%emt 00:00:08]} 55. Kf2 {[%clk 00:01:15]}
{[%emt 00:00:02]} Rd3 {[%clk 00:00:33]} {[%emt 00:00:02]} 56. Rg7 {[%clk
00:01:13]} {[%emt 00:00:11]} Rxd5 {[%clk 00:00:32]} {[%emt 00:00:12]} 57. Rxg6
{[%clk 00:01:20]} {[%emt 00:00:02]} Ke7 {[%clk 00:00:41]} {[%emt 00:00:01]} 58.
Kg2 {[%clk 00:00:44]} {[%emt 00:00:45]} Kf7 {[%clk 00:00:46]} {[%emt 00:00:06]}
59. Ra6 {[%clk 00:00:53]} {[%emt 00:00:02]} Kg7 {[%clk 00:00:42]} {[%emt
00:00:14]} 60. Kh3 {[%clk 00:00:58]} {[%emt 00:00:04]} Rb5 {[%clk 00:00:12]}
{[%emt 00:00:39]} 61. Kh4 {[%clk 00:01:00]} {[%emt 00:00:08]} Rf5 {[%clk
00:00:11]} {[%emt 00:00:12]} 62. Re6 {[%clk 00:01:03]} {[%emt 00:00:07]} Ra5
{[%clk 00:00:11]} {[%emt 00:00:10]} 63. Rc6 {[%clk 00:00:37]} {[%emt 00:00:37]}
Rf5 {[%clk 00:00:13]} {[%emt 00:00:08]} 64. Kh3 {[%clk 00:00:40]} {[%emt
00:00:06]} Ra5 {[%clk 00:00:21]} {[%emt 00:00:02]} 65. Rb6 {[%clk 00:00:40]}
{[%emt 00:00:10]} Rc5 {[%clk 00:00:27]} {[%emt 00:00:04]} 66. Kg2 {[%clk
00:00:47]} {[%emt 00:00:03]} Rc3 {[%clk 00:00:27]} {[%emt 00:00:10]} 67. Re6
{[%clk 00:00:47]} {[%emt 00:00:09]} Kf7 {[%clk 00:00:26]} {[%emt 00:00:11]} 68.
Re5 {[%clk 00:00:51]} {[%emt 00:00:06]} Kg6 {[%clk 00:01:00]} {[%emt 00:01:08]}
69. Rb5 {[%clk 00:00:42]} Rc1 {[%clk 00:01:06]} {[%emt 00:00:12]} 70. Kh3
{[%clk 00:00:51]} Ra1 {[%clk 00:00:51]} {[%emt 00:00:27]} 71. Rb6+ {[%clk
00:00:55]} {[%emt 00:00:05]} Kg7 {[%clk 00:00:36]} {[%emt 00:00:25]} 72. Kh4
{[%clk 00:00:59]} {[%emt 00:00:06]} Rh1+ {[%clk 00:00:15]} {[%emt 00:00:31]} 73.
Kg5 {[%clk 00:01:07]} {[%emt 00:00:01]} Rg1 {[%clk 00:00:24]} 74. Rb7+ {[%clk
00:01:14]} {[%emt 00:00:05]} Kg8 {[%emt 00:00:09]} 75. Rb3 {[%clk 00:01:04]}
{[%emt 00:00:19]} Rh1 {[%clk 00:00:27]} {[%emt 00:00:09]} 76. Kg6 {[%clk
00:01:10]} {[%emt 00:00:03]} Kf8 {[%clk 00:00:33]} {[%emt 00:00:04]} 77. f5
{[%clk 00:01:13]} {[%emt 00:00:07]} Rf1 {[%clk 00:00:11]} {[%emt 00:00:32]} 78.
f6 {[%clk 00:01:11]} {[%emt 00:00:11]} Ke8 {[%emt 00:00:05]} 79. f7+ {[%clk
00:00:47]} {[%emt 00:00:30]} Ke7 {[%clk 00:00:21]} {[%emt 00:00:09]} 80. Re3+
{[%clk 00:00:41]} {[%emt 00:00:16]} Ke6 {[%emt 00:00:04]} 1-0

[Event "NK ABC Kwalificatie 2"]
[Site "Zoetermeer, Netherlands"]
[Date "2025.01.05"]
[Round "5.2"]
[White "Bakija, Alan"]
[Black "Damen, Josephine"]
[Result "1-0"]
[TimeControl "55+10"]
[WhiteFideId "8629346"]
[BlackFideId "8647606"]
[WhiteElo "2247"]
[BlackElo "1891"]

1. d4 {[%clk 00:55:17]} {[%emt 00:00:02]} Nf6 {[%clk 00:55:13]} {[%emt
00:00:07]} 2. c4 {[%clk 00:55:23]} {[%emt 00:00:04]} g6 {[%clk 00:55:20]}
{[%emt 00:00:03]} 3. Nf3 {[%clk 00:55:29]} {[%emt 00:00:04]} Bg7 {[%clk
00:55:25]} {[%emt 00:00:04]} 4. g3 {[%clk 00:55:34]} {[%emt 00:00:05]} d6
{[%clk 00:55:32]} {[%emt 00:00:03]} 5. Nc3 {[%clk 00:55:37]} {[%emt 00:00:08]}
O-O {[%clk 00:55:37]} {[%emt 00:00:05]} 6. Bg2 {[%clk 00:55:43]} {[%emt
00:00:04]} Nc6 {[%clk 00:55:43]} {[%emt 00:00:05]} 7. d5 {[%clk 00:55:33]}
{[%emt 00:00:20]} Na5 {[%clk 00:55:47]} {[%emt 00:00:04]} 8. b3 {[%clk
00:55:39]} {[%emt 00:00:04]} c5 {[%clk 00:55:52]} {[%emt 00:00:05]} 9. Bb2
{[%clk 00:55:45]} {[%emt 00:00:04]} a6 {[%clk 00:55:55]} {[%emt 00:00:08]} 10.
O-O {[%clk 00:55:46]} {[%emt 00:00:07]} Rb8 {[%clk 00:55:58]} {[%emt 00:00:09]}
11. Nd2 {[%clk 00:55:51]} {[%emt 00:00:04]} b5 {[%clk 00:56:02]} {[%emt
00:00:08]} 12. Qc1 {[%clk 00:55:54]} {[%emt 00:00:05]} Bh6 {[%clk 00:55:58]}
{[%emt 00:00:14]} 13. e3 {[%clk 00:55:56]} {[%emt 00:00:08]} bxc4 {[%clk
00:56:02]} {[%emt 00:00:08]} 14. bxc4 {[%clk 00:55:57]} {[%emt 00:00:09]} Ng4
{[%clk 00:56:03]} {[%emt 00:00:08]} 15. Nd1 {[%clk 00:43:59]} {[%emt 00:12:08]}
e5 {[%clk 00:52:25]} {[%emt 00:03:48]} 16. dxe6 {[%clk 00:40:28]} {[%emt
00:03:41]} fxe6 {[%clk 00:44:29]} {[%emt 00:08:06]} 17. Rb1 {[%clk 00:38:33]}
{[%emt 00:02:05]} Rf7 {[%clk 00:36:44]} {[%emt 00:07:54]} 18. h3 {[%clk
00:30:27]} {[%emt 00:08:17]} Nf6 {[%clk 00:36:20]} {[%emt 00:00:34]} 19. Bxf6
{[%clk 00:23:43]} {[%emt 00:06:55]} Rxb1 {[%clk 00:36:24]} {[%emt 00:00:06]} 20.
Bxd8 {[%clk 00:18:02]} {[%emt 00:05:50]} Rxc1 {[%clk 00:36:19]} {[%emt
00:00:15]} 21. Bxa5 {[%clk 00:18:08]} {[%emt 00:00:04]} Ra1 {[%clk 00:27:39]}
{[%emt 00:08:50]} 22. Nc3 {[%clk 00:16:23]} {[%emt 00:01:55]} Rxf1+ {[%clk
00:25:39]} {[%emt 00:02:10]} 23. Nxf1 {[%clk 00:15:34]} {[%emt 00:00:59]} Bb7
{[%clk 00:25:02]} {[%emt 00:00:47]} 24. Ne4 {[%clk 00:13:23]} {[%emt 00:02:21]}
Bf8 {[%clk 00:21:27]} {[%emt 00:03:45]} 25. Bc3 {[%clk 00:13:09]} {[%emt
00:00:24]} Be7 {[%clk 00:18:58]} {[%emt 00:02:39]} 26. Ned2 {[%clk 00:11:31]}
{[%emt 00:01:48]} Bxg2 {[%clk 00:14:44]} {[%emt 00:04:24]} 27. Kxg2 {[%clk
00:11:39]} {[%emt 00:00:01]} Bd8 {[%clk 00:13:42]} {[%emt 00:01:14]} 28. Nb3
{[%clk 00:10:20]} {[%emt 00:01:28]} Bb6 {[%clk 00:12:38]} {[%emt 00:01:14]} 29.
Nfd2 {[%clk 00:10:08]} {[%emt 00:00:22]} d5 {[%clk 00:11:23]} {[%emt 00:01:25]}
30. Kf1 {[%clk 00:07:03]} {[%emt 00:03:16]} Kf8 {[%clk 00:09:07]} {[%emt
00:02:26]} 31. Ke2 {[%clk 00:06:59]} {[%emt 00:00:14]} Ke8 {[%clk 00:08:45]}
{[%emt 00:00:32]} 32. f4 {[%clk 00:04:35]} {[%emt 00:02:33]} Rd7 {[%clk
00:05:54]} {[%emt 00:03:00]} 33. Be5 {[%clk 00:03:48]} {[%emt 00:00:58]} Kd8
{[%clk 00:04:36]} {[%emt 00:01:28]} 34. g4 {[%clk 00:03:40]} {[%emt 00:00:18]}
Ke7 {[%clk 00:03:38]} {[%emt 00:01:08]} 35. Bb2 {[%clk 00:02:58]} {[%emt
00:00:53]} Kd8 {[%clk 00:03:12]} {[%emt 00:00:36]} 36. Ba3 {[%clk 00:03:03]}
{[%emt 00:00:04]} Rc7 {[%clk 00:03:08]} {[%emt 00:00:14]} 37. Kd3 {[%clk
00:03:10]} {[%emt 00:00:04]} a5 {[%clk 00:03:05]} {[%emt 00:00:13]} 38. Nf3
{[%clk 00:03:10]} {[%emt 00:00:09]} a4 {[%clk 00:02:51]} {[%emt 00:00:25]} 39.
Nbd2 {[%clk 00:03:19]} Ba5 {[%clk 00:02:37]} {[%emt 00:00:24]} 40. Ng5 {[%clk
00:02:15]} {[%emt 00:01:13]} Rc6 {[%clk 00:00:50]} {[%emt 00:01:58]} 41. Nxh7
{[%clk 00:02:01]} {[%emt 00:00:24]} Bb4 {[%clk 00:00:58]} {[%emt 00:00:02]} 42.
Bb2 {[%clk 00:01:47]} {[%emt 00:00:24]} Rb6 {[%clk 00:00:26]} {[%emt 00:00:41]}
43. Nf3 {[%clk 00:01:39]} {[%emt 00:00:18]} a3 {[%clk 00:00:17]} {[%emt
00:00:19]} 44. Be5 {[%clk 00:01:47]} {[%emt 00:00:02]} Ba5 {[%clk 00:00:16]}
{[%emt 00:00:11]} 45. h4 {[%clk 00:00:53]} {[%emt 00:01:04]} Rb1 {[%clk
00:00:18]} {[%emt 00:00:08]} 46. Nf8 {[%clk 00:00:38]} {[%emt 00:00:26]} Ke7
{[%clk 00:00:00]} {[%emt 00:02:27]} 47. Nxg6+ {[%clk 00:02:40]} {[%emt
00:00:23]} Kf7 {[%clk 00:00:32]} 48. h5 {[%clk 00:02:37]} {[%emt 00:00:14]}
Rd1+ {[%clk 00:00:40]} 49. Kc2 {[%clk 00:02:29]} {[%emt 00:00:18]} Rf1 {[%clk
00:00:36]} {[%emt 00:00:14]} 50. Ng5+ {[%clk 00:02:37]} {[%emt 00:00:03]} Kg8
{[%clk 00:00:37]} {[%emt 00:00:09]} 51. h6 {[%clk 00:02:37]} {[%emt 00:00:10]}
Rf2+ {[%clk 00:00:31]} {[%emt 00:00:16]} 52. Kb3 {[%clk 00:02:21]} {[%emt
00:00:26]} dxc4+ {[%clk 00:00:37]} {[%emt 00:00:04]} 53. Kxc4 {[%clk 00:02:21]}
{[%emt 00:00:10]} Rc2+ {[%clk 00:00:34]} {[%emt 00:00:14]} 54. Kb5 {[%clk
00:02:11]} {[%emt 00:00:20]} 1-0

[Event "NK ABC Kwalificatie 2"]
[Site "Zoetermeer, Netherlands"]
[Date "2025.01.05"]
[Round "5.3"]
[White "Kumar, Prajit Sai"]
[Black "Smeenk, Merijn"]
[Result "1-0"]
[TimeControl "55+10"]
[WhiteFideId "8767979"]
[BlackFideId "8707919"]
[WhiteElo "2210"]
[BlackElo "1782"]

1. d4 {[%clk 00:55:19]} {[%emt 00:00:01]} d5 {[%clk 00:55:12]} {[%emt
00:00:08]} 2. Nf3 {[%clk 00:55:24]} {[%emt 00:00:05]} Nf6 {[%clk 00:55:12]}
{[%emt 00:00:09]} 3. c3 {[%clk 00:55:30]} {[%emt 00:00:06]} e6 {[%clk
00:54:56]} {[%emt 00:00:24]} 4. Bf4 {[%clk 00:55:34]} {[%emt 00:00:06]} c5
{[%clk 00:54:23]} {[%emt 00:00:44]} 5. e3 {[%clk 00:55:39]} {[%emt 00:00:05]}
Bd6 {[%clk 00:54:07]} {[%emt 00:00:26]} 6. Nbd2 {[%clk 00:55:37]} {[%emt
00:00:12]} O-O {[%clk 00:54:03]} {[%emt 00:00:14]} 7. Bg3 {[%clk 00:55:37]}
{[%emt 00:00:10]} Qc7 {[%clk 00:53:56]} {[%emt 00:00:17]} 8. dxc5 {[%clk
00:54:09]} {[%emt 00:01:38]} Qxc5 {[%clk 00:53:10]} {[%emt 00:00:56]} 9. Bd3
{[%clk 00:54:13]} {[%emt 00:00:06]} Nbd7 {[%clk 00:52:09]} {[%emt 00:01:10]} 10.
Qe2 {[%clk 00:54:07]} {[%emt 00:00:17]} e5 {[%clk 00:48:20]} {[%emt 00:03:59]}
11. e4 {[%clk 00:54:10]} {[%emt 00:00:06]} dxe4 {[%clk 00:46:45]} {[%emt
00:01:46]} 12. Bxe4 {[%clk 00:54:15]} {[%emt 00:00:05]} Qc7 {[%clk 00:42:19]}
{[%emt 00:04:35]} 13. O-O {[%clk 00:50:02]} {[%emt 00:04:23]} Nxe4 {[%clk
00:36:35]} {[%emt 00:05:54]} 14. Nxe4 {[%clk 00:50:05]} {[%emt 00:00:08]} f6
{[%clk 00:36:33]} {[%emt 00:00:12]} 15. Nd4 {[%clk 00:47:16]} {[%emt 00:02:59]}
Qb6 {[%clk 00:30:43]} {[%emt 00:06:00]} 16. Nf5 {[%clk 00:44:28]} {[%emt
00:02:57]} Bc7 {[%clk 00:29:48]} {[%emt 00:01:04]} 17. Qg4 {[%clk 00:41:41]}
{[%emt 00:02:58]} g6 {[%clk 00:26:25]} {[%emt 00:03:34]} 18. Ne7+ {[%clk
00:41:39]} {[%emt 00:00:12]} Kf7 {[%clk 00:25:23]} {[%emt 00:01:13]} 19. Nxc8
{[%clk 00:41:20]} {[%emt 00:00:28]} Qe6 {[%clk 00:23:28]} {[%emt 00:02:05]} 20.
Ned6+ {[%clk 00:39:14]} {[%emt 00:02:16]} Bxd6 {[%clk 00:20:56]} {[%emt
00:02:42]} 21. Nxd6+ {[%clk 00:39:18]} {[%emt 00:00:06]} Ke7 {[%clk 00:17:49]}
{[%emt 00:03:16]} 22. Qxe6+ {[%clk 00:39:21]} {[%emt 00:00:07]} Kxe6 {[%clk
00:17:50]} {[%emt 00:00:10]} 23. Nb5 {[%clk 00:39:18]} {[%emt 00:00:13]} Rfc8
{[%clk 00:16:00]} {[%emt 00:02:00]} 24. Rad1 {[%clk 00:38:34]} {[%emt
00:00:54]} a6 {[%clk 00:15:15]} {[%emt 00:00:54]} 25. Rd6+ {[%clk 00:38:01]}
{[%emt 00:00:43]} Kd5 {[%emt 00:00:55]} 1-0

[Event "NK ABC Kwalificatie 2"]
[Site "Zoetermeer, Netherlands"]
[Date "2025.01.05"]
[Round "5.4"]
[White "Rogozyanskiy, Alexander"]
[Black "Ertabak, Aral"]
[Result "0-1"]
[TimeControl "55+10"]
[WhiteFideId "8973866"]
[BlackFideId "9008483"]
[WhiteElo "1873"]
[BlackElo "1842"]

1. e4 {[%clk 00:55:17]} {[%emt 00:00:03]} c6 {[%clk 00:54:07]} {[%emt
00:01:14]} 2. Nc3 {[%clk 00:55:20]} {[%emt 00:00:06]} d5 {[%clk 00:54:05]}
{[%emt 00:00:13]} 3. Nf3 {[%clk 00:55:26]} {[%emt 00:00:03]} dxe4 {[%clk
00:53:08]} {[%emt 00:01:07]} 4. Nxe4 {[%clk 00:55:31]} {[%emt 00:00:05]} Nf6
{[%clk 00:52:29]} {[%emt 00:00:49]} 5. Qe2 {[%clk 00:55:35]} {[%emt 00:00:06]}
Nxe4 {[%clk 00:52:27]} {[%emt 00:00:12]} 6. Qxe4 {[%clk 00:55:38]} {[%emt
00:00:07]} Nd7 {[%clk 00:52:30]} {[%emt 00:00:07]} 7. Bc4 {[%clk 00:55:43]}
{[%emt 00:00:05]} Nf6 {[%clk 00:51:11]} {[%emt 00:01:29]} 8. Ne5 {[%clk
00:55:48]} {[%emt 00:00:06]} e6 {[%clk 00:51:15]} {[%emt 00:00:06]} 9. Qe2
{[%clk 00:55:54]} {[%emt 00:00:03]} b5 {[%clk 00:50:50]} {[%emt 00:00:36]} 10.
Bb3 {[%clk 00:55:59]} {[%emt 00:00:05]} Qc7 {[%clk 00:50:13]} {[%emt 00:00:45]}
11. O-O {[%clk 00:53:10]} {[%emt 00:03:00]} Bd6 {[%clk 00:48:49]} {[%emt
00:01:33]} 12. d4 {[%clk 00:52:07]} {[%emt 00:01:14]} O-O {[%clk 00:48:39]}
{[%emt 00:00:20]} 13. f4 {[%clk 00:48:56]} {[%emt 00:03:21]} c5 {[%clk
00:42:44]} {[%emt 00:06:06]} 14. c3 {[%clk 00:48:28]} {[%emt 00:00:37]} a5
{[%clk 00:37:34]} {[%emt 00:05:22]} 15. Be3 {[%clk 00:42:18]} {[%emt 00:06:18]}
a4 {[%clk 00:29:43]} {[%emt 00:08:02]} 16. Bc2 {[%clk 00:41:19]} {[%emt
00:01:08]} a3 {[%clk 00:28:40]} {[%emt 00:01:13]} 17. b3 {[%clk 00:38:07]}
{[%emt 00:03:22]} Nd5 {[%clk 00:23:26]} {[%emt 00:05:24]} 18. Rf3 {[%clk
00:22:47]} {[%emt 00:15:29]} f5 {[%clk 00:20:51]} {[%emt 00:02:46]} 19. dxc5
{[%clk 00:14:51]} {[%emt 00:08:07]} Bxe5 {[%clk 00:11:19]} {[%emt 00:09:41]} 20.
fxe5 {[%clk 00:13:45]} {[%emt 00:01:16]} Qxe5 {[%clk 00:11:28]} {[%emt
00:00:01]} 21. Qd2 {[%clk 00:10:15]} {[%emt 00:03:40]} Qxc3 {[%clk 00:08:29]}
{[%emt 00:03:09]} 22. Qxc3 {[%clk 00:09:01]} {[%emt 00:01:23]} Nxc3 {[%clk
00:08:37]} {[%emt 00:00:02]} 23. Bf2 {[%clk 00:09:11]} b4 {[%clk 00:07:40]}
{[%emt 00:01:08]} 24. Rxc3 {[%clk 00:04:36]} {[%emt 00:04:44]} bxc3 {[%clk
00:07:45]} {[%emt 00:00:04]} 25. Bd4 {[%clk 00:04:39]} {[%emt 00:00:07]} Bb7
{[%clk 00:04:40]} {[%emt 00:03:15]} 26. Bxc3 {[%clk 00:04:13]} {[%emt
00:00:36]} Rfc8 {[%clk 00:04:38]} {[%emt 00:00:13]} 27. Bd4 {[%clk 00:02:30]}
{[%emt 00:01:53]} Bd5 {[%clk 00:02:54]} {[%emt 00:01:53]} 28. Rc1 {[%clk
00:02:00]} {[%emt 00:00:40]} Rab8 {[%clk 00:01:58]} {[%emt 00:01:07]} 29. Rd1
{[%clk 00:00:18]} {[%emt 00:01:53]} Rb5 {[%emt 00:01:39]} 0-1

[Event "NK ABC Kwalificatie 2"]
[Site "Zoetermeer, Netherlands"]
[Date "2025.01.05"]
[Round "5.5"]
[White "Oskam, Dejen"]
[Black "Van de Poel, Jona"]
[Result "0-1"]
[TimeControl "55+10"]
[WhiteFideId "8686733"]
[BlackFideId "8707633"]
[WhiteElo "1832"]
[BlackElo "1857"]

1. d4 {[%clk 00:54:47]} {[%emt 00:00:33]} Nf6 {[%clk 00:55:03]} {[%emt
00:00:17]} 2. c4 {[%clk 00:54:47]} {[%emt 00:00:11]} e6 {[%clk 00:55:07]}
{[%emt 00:00:06]} 3. Nc3 {[%clk 00:54:53]} {[%emt 00:00:03]} Bb4 {[%clk
00:55:13]} {[%emt 00:00:04]} 4. Qc2 {[%clk 00:54:55]} {[%emt 00:00:09]} b6
{[%clk 00:54:23]} {[%emt 00:01:00]} 5. Bg5 {[%clk 00:53:38]} {[%emt 00:01:27]}
h6 {[%clk 00:54:09]} {[%emt 00:00:24]} 6. Bh4 {[%clk 00:53:23]} {[%emt
00:00:25]} Bb7 {[%clk 00:52:22]} {[%emt 00:01:57]} 7. f3 {[%clk 00:51:07]}
{[%emt 00:02:26]} d5 {[%clk 00:50:02]} {[%emt 00:02:30]} 8. a3 {[%clk
00:44:39]} {[%emt 00:06:38]} Be7 {[%clk 00:47:22]} {[%emt 00:02:50]} 9. Bf2
{[%clk 00:31:02]} {[%emt 00:13:46]} c5 {[%clk 00:45:42]} {[%emt 00:01:51]} 10.
e3 {[%clk 00:30:00]} {[%emt 00:01:11]} O-O {[%clk 00:45:23]} {[%emt 00:00:29]}
11. Nge2 {[%clk 00:26:10]} {[%emt 00:04:00]} dxc4 {[%clk 00:42:27]} {[%emt
00:03:07]} 12. dxc5 {[%clk 00:25:46]} {[%emt 00:00:34]} Bxc5 {[%clk 00:42:03]}
{[%emt 00:00:33]} 13. Ng3 {[%clk 00:23:42]} {[%emt 00:02:14]} Nd5 {[%clk
00:41:03]} {[%emt 00:01:11]} 14. Rd1 {[%clk 00:16:34]} {[%emt 00:07:17]} Qc7
{[%clk 00:38:16]} {[%emt 00:02:57]} 15. Nxd5 {[%clk 00:10:00]} {[%emt
00:06:44]} exd5 {[%clk 00:36:33]} {[%emt 00:01:53]} 16. Be2 {[%clk 00:09:21]}
{[%emt 00:00:49]} Nd7 {[%clk 00:33:21]} {[%emt 00:03:22]} 17. h4 {[%clk
00:08:48]} {[%emt 00:00:43]} Nf6 {[%clk 00:30:23]} {[%emt 00:03:08]} 18. h5
{[%clk 00:07:26]} {[%emt 00:01:32]} Qe5 {[%clk 00:30:19]} {[%emt 00:00:15]} 19.
Nf5 {[%clk 00:06:20]} {[%emt 00:01:15]} Bc8 {[%clk 00:29:54]} {[%emt 00:00:36]}
20. Nd4 {[%clk 00:05:54]} {[%emt 00:00:36]} Re8 {[%clk 00:29:00]} {[%emt
00:01:04]} 21. g4 {[%clk 00:04:13]} {[%emt 00:01:51]} Bxd4 {[%clk 00:28:01]}
{[%emt 00:01:09]} 22. exd4 {[%clk 00:04:10]} {[%emt 00:00:12]} Qf4 {[%clk
00:26:25]} {[%emt 00:01:46]} 23. Rh3 {[%clk 00:03:42]} {[%emt 00:00:38]} Bd7
{[%clk 00:23:53]} {[%emt 00:02:42]} 24. Bg3 {[%clk 00:03:26]} {[%emt 00:00:26]}
Qxf3 {[%clk 00:23:41]} {[%emt 00:00:23]} 0-1